Workbook

Sheet P&L
A1: AGILENT TECHNOLOGIES, INC.
A2: CONDENSED CONSOLIDATED STATEMENT OF OPERATIONS
A3: (In millions, except per share amounts)
A4: (Unaudited)
A5: PRELIMINARY
B8: Three Months Ended | F8: Nine Months Ended
B9: July 31, | F9: July 31,
B10: 2021 | D10: 2020 | F10: 2021 | H10: 2020
A12: Net revenue | B12: $1,586 | D12: $1,261 | F12: $4,659 | H12: $3,856
A14: Costs and expenses:
A15: Cost of products and services | B15: 734 | D15: 592 | F15: 2,152 | H15: 1,807
A16: Research and development | B16: 113 | D16: 92 | F16: 325 | H16: 393
A17: Selling, general and administrative | B17: 403 | D17: 347 | F17: 1,230 | H17: 1,109
A18: Total costs and expenses | B18: =SUM(B15:B17) -> 1,250 | D18: =SUM(D15:D17) -> 1,031 | F18: =SUM(F15:F17) -> 3,707 | H18: =SUM(H15:H17) -> 3,309
A20: Income from operations | B20: =B12-B18 -> 336 | D20: =D12-D18 -> 230 | F20: =F12-F18 -> 952 | H20: =H12-H18 -> 547
A22: Interest income | B22: — | D22: 1 | F22: 1 | H22: 7
A23: Interest expense | B23: (21) | D23: (19) | F23: (60) | H23: (59)
A24: Other income (expense), net | B24: 12 | D24: 7 | F24: 19 | H24: 64
A26: Income before taxes | B26: =SUM(B20:B24) -> 327 | D26: =SUM(D20:D24) -> 219 | F26: =SUM(F20:F24) -> 912 | H26: =SUM(H20:H24) -> 559
A28: Provision for income taxes | B28: 63 | D28: 20 | F28: 144 | H28: 62
A30: Net income | B30: =B26-B28 -> $264 | D30: =D26-D28 -> $199 | F30: =F26-F28 -> $768 | H30: =H26-H28 -> $497
A34: Net income per share:
A35: Basic | B35: =B30/B39 -> $0.87 | D35: =D30/D39 -> $0.64 | F35: =F30/F39 -> $2.52 | H35: =H30/H39 -> $1.61
A36: Diluted | B36: =B30/B40 -> $0.86 | D36: =D30/D40 -> $0.64 | F36: =F30/F40 -> $2.50 | H36: =H30/H40 -> $1.59
A38: Weighted average shares used in computing net income per share:
A39: Basic | B39: 303 | D39: 309 | F39: 305 | H39: 309
A40: Diluted | B40: 306 | D40: 312 | F40: 307 | H40: 312
A48: The preliminary income statement is estimated based on our current information.
A51: Page 1

Sheet Balance Sheet
A1: AGILENT TECHNOLOGIES, INC.
A2: CONDENSED CONSOLIDATED BALANCE SHEET
A3: (In millions, except par value and share amounts)
A4: (Unaudited)
A5: PRELIMINARY
E8: July 31, | G8: October 31,
E9: 2021 | G9: 2020
A10: ASSETS
A12: Current assets:
B13: Cash and cash equivalents | E13: $1,428 | G13: $1,441
B14: Accounts receivable, net | E14: 1,122 | G14: 1,038
B15: Inventory | E15: 818 | G15: 720
B16: Other current assets | E16: 264 | G16: 216
C17: Total current assets | E17: =SUM(E13:E16) -> 3,632 | G17: =SUM(G13:G16) -> 3,415
A19: Property, plant and equipment, net | E19: 905 | G19: 845
A20: Goodwill and other intangible assets, net | E20: =3976+1032 -> 5,008 | G20: =3602+831 -> 4,433
A21: Long-term investments | E21: 204 | G21: 158
A22: Other assets | E22: 742 | G22: 776
C23: Total assets | E23: =SUM(E17:E22) -> $10,491 | G23: =SUM(G17:G22) -> $9,627
A25: LIABILITIES AND EQUITY
A27: Current liabilities:
B28: Accounts payable | E28: $416 | G28: $354
B29: Employee compensation and benefits | E29: 423 | G29: 367
B30: Deferred revenue | E30: 443 | G30: 386
B31: Short-term debt | E31: 130 | G31: 75
B32: Other accrued liabilities | E32: 312 | G32: 285
C33: Total current liabilities | E33: =SUM(E28:E32) -> 1,724 | G33: =SUM(G28:G32) -> 1,467
A35: Long-term debt | E35: 2,728 | G35: 2,284
A36: Retirement and post-retirement benefits | E36: 365 | G36: 389
A37: Other long-term liabilities | E37: 728 | G37: 614
C38: Total liabilities | E38: =SUM(E33:E37) -> 5,545 | G38: =SUM(G33:G37) -> 4,754
A40: Total Equity:
B41: Stockholders' equity:
B42: Preferred stock; $0.01 par value; 125 million
C43: shares authorized; none issued and outstanding | E43: — | G43: —
B44: Common stock; $0.01 par value, 2 billion
C45: shares authorized; 303 million shares at July 31, 2021
C46: and 306 million shares at October 31, 2020, issued and outstanding | E46: 3 | G46: 3
B47: Additional paid-in-capital | E47: 5,307 | G47: 5,311
B48: Retained earnings | E48: 90 | G48: 81
B49: Accumulated other comprehensive loss | E49: (454) | G49: (522)
C50: Total stockholders' equity | E50: =SUM(E43:E49) -> 4,946 | G50: =SUM(G43:G49) -> 4,873
D51: Total liabilities and stockholders' equity | E51: =E38+E50 -> $10,491 | G51: =G38+G50 -> $9,627
A55: The preliminary balance sheet is estimated based on our current information.
A58: Page 2

Sheet Cash Flow
A1: AGILENT TECHNOLOGIES, INC.
A2: CONDENSED CONSOLIDATED STATEMENT OF CASH FLOWS
A3: (In millions)
A4: (Unaudited)
A5: PRELIMINARY
F8: Nine Months Ended
F9: July 31, | H9: July 31,
F10: 2021 | H10: 2020
A11: Cash flows from operating activities:
B12: Net income | F12: $768 | H12: $497
A14: Adjustments to reconcile net income to net cash provided by operating activities:
B15: Depreciation and amortization | F15: =91+146 -> 237 | H15: 232
B16: Share-based compensation | F16: 88 | H16: 63
B17: Excess and obsolete inventory related charges | F17: 21 | H17: 18
B18: Loss on extinguishment of debt | F18: 17 | H18: —
B19: Asset impairment charges | F19: 2 | H19: 99
B20: Unrealized gain on equity securities, net | F20: (19) | H20: (26)
B21: Other non-cash expenses, net | F21: =1 -> 1 | H21: 6
B22: Changes in assets and liabilities:
C23: Accounts receivable, net | F23: (69) | H23: 1
C24: Inventory | F24: (115) | H24: (86)
C25: Accounts payable | F25: 46 | H25: (35)
C26: Employee compensation and benefits | F26: 38 | H26: (32)
C27: Other assets and liabilities | F27: =-12+41 -> 29 | H27: (193)
A28: Net cash provided by operating activities (a) | F28: =SUM(F12:F27) -> 1,044 | H28: =SUM(H12:H27) -> 544
A30: Cash flows from investing activities:
B31: Investments in property, plant and equipment | F31: (126) | H31: (92)
B32: Proceeds from sale of property, plant and equipment | F32: — | H32: 1
B33: Payment to acquire fair value investments | F33: (15) | H33: (20)
B34: Payment to acquire intangible assets | F34: (1) | H34: —
B35: Payment in exchange for convertible note | F35: (2) | H35: (9)
B36: Acquisition of businesses and intangible assets, net of cash acquired | F36: (546) | H36: —
A37: Net cash used in investing activities | F37: =SUM(F31:F36) -> (690) | H37: =SUM(H31:H36) -> (120)
A39: Cash flows from financing activities:
B40: Issuance of common stock under employee stock plans | F40: 52 | H40: 56
B41: Payment of taxes related to net share settlement of equity awards | F41: (74) | H41: (34)
B42: Issuance of senior notes | F42: 848 | H42: 499
B43: Debt issuance costs | F43: (7) | H43: (4)
B44: Payment of dividends | F44: (177) | H44: (167)
B45: Repayment of senior notes | F45: (417) | H45: —
B46: Proceeds from commercial paper | F46: 1,492 | H46: 240
B47: Repayment of commercial paper | F47: (1,437) | H47: (200)
B48: Proceeds from credit facility | F48: — | H48: 798
B49: Repayment of credit facility and short-term loan | F49: — | H49: (1,413)
B50: Repayment of finance lease | F50: — | H50: (4)
B51: Treasury stock repurchases | F51: (652) | H51: (219)
A52: Net cash used in financing activities | F52: =SUM(F38:F51) -> (372) | H52: =SUM(H40:H51) -> (448)
A54: Effect of exchange rate movements | F54: 6 | H54: —
A56: Net decrease in cash, cash equivalents and restricted cash | F56: =F28+F37+F52+F54 -> (12) | H56: =H28+H37+H52 -> (24)
A58: Cash, cash equivalents and restricted cash at beginning of period | F58: 1,447 | H58: 1,388
A60: Cash, cash equivalents and restricted cash at end of period | F60: =SUM(F56:F58) -> $1,435 | H60: =SUM(H56:H58) -> $1,364
A63: Reconciliation of cash, cash equivalents and restricted cash to the condensed consolidated balance sheet:
B65: Cash and cash equivalents | F65: $1,428 | H65: $1,358
B66: Restricted cash, included in other assets | F66: 7 | H66: 6
B67: Total cash, cash equivalents and restricted cash | F67: =SUM(F65:F66) -> $1,435 | H67: =SUM(H65:H66) -> $1,364
A70: (a) Cash payments included in operating activities:
B72: Income tax paid, net | F72: $164 | H72: $325
B73: Interest payments | F73: $53 | H73: $53
A76: The preliminary cash flow is estimated based on our current information.
A79: Page 3

Sheet Net Income & EPS Non-GAAP
A1: AGILENT TECHNOLOGIES, INC.
A2: NON-GAAP NET INCOME AND DILUTED EPS RECONCILIATIONS
A3: (In millions, except per share amounts)
A4: (Unaudited)
A5: PRELIMINARY
E7: Three Months Ended | K7: Nine Months Ended
E8: July 31, | K8: July 31,
E9: 2021 | F9: Diluted EPS | H9: 2020 | I9: Diluted EPS | K9: 2021 | L9: Diluted EPS | N9: 2020 | O9: Diluted EPS
A11: GAAP net income | E11: $264 | F11: $0.86 | H11: $199 | I11: $0.64 | K11: $768 | L11: $2.50 | N11: $497 | O11: $1.59
B12: Non-GAAP adjustments:
C13: Asset impairments | E13: — | F13: — | H13: — | I13: — | K13: 2 | L13: 0.01 | N13: 99 | O13: 0.32
C14: Intangible amortization | E14: 53 | F14: 0.17 | H14: 45 | I14: 0.15 | K14: 143 | L14: 0.47 | N14: 139 | O14: 0.45
C15: Transformational initiatives | E15: 12 | F15: 0.04 | H15: 13 | I15: 0.04 | K15: 32 | L15: 0.10 | N15: 41 | O15: 0.13
C16: Acquisition and integration costs | E16: 10 | F16: 0.03 | H16: 9 | I16: 0.03 | K16: 32 | L16: 0.10 | N16: 33 | O16: 0.11
C17: Loss on extinguishment of debt | E17: — | F17: — | H17: — | I17: — | K17: 17 | L17: 0.06 | N17: — | O17: —
C18: Business exit and divestiture costs | E18: — | F18: — | H18: — | I18: — | K18: 4 | L18: 0.01 | N18: — | O18: —
C19: Other | E19: =1-8 -> (7) | F19: (0.03) | H19: 2 | I19: — | K19: =1+1-14 -> (12) | L19: (0.05) | N19: (21) | O19: (0.07)
C20: Adjustment for taxes (a) | E20: 5 | F20: 0.03 | H20: (25) | I20: (0.08) | K20: (22) | L20: (0.06) | N20: (70) | O20: (0.23)
A21: Non-GAAP net income | E21: =SUM(E11:E20) -> $337 | F21: =SUM(F11:F20) -> $1.10 | H21: =SUM(H11:H20) -> $243 | I21: =SUM(I11:I20) -> $0.78 | K21: =SUM(K11:K20) -> $964 | L21: =SUM(L11:L20) -> $3.14 | N21: =SUM(N11:N20) -> $718 | O21: =SUM(O11:O20) -> $2.30
A24: (a) The adjustment for taxes excludes tax expense (benefits) that management believes are not directly related to on-going operations and which are either isolated or cannot be expected to occur again with any regularity or predictability. For the three and nine months ended July 31, 2021, management used a non-GAAP effective tax rate of 14.75%. For the three and nine months ended July 31, 2020, management used a non-GAAP effective tax rate of 15.50%.
A26: We provide non-GAAP net income and non-GAAP net income per share amounts in order to provide meaningful supplemental information regarding our operational performance and our prospects for the future. These supplemental measures exclude, among other things, charges related to asset impairments, amortization of intangibles, transformational initiatives, acquisition and integration costs, loss on extinguishment of debt and business exit and divestiture costs.
B27: Asset impairments include assets that have been written down to their fair value.
B28: Transformational initiatives include expenses associated with targeted cost reduction activities such as manufacturing transfers including costs to move manufacturing, small site consolidations, legal entity and other business reorganizations, insourcing or outsourcing of activities. Such costs may include move and relocation costs, one-time termination benefits and other one-time reorganization costs. Included in this category are also expenses associated with company programs to transform our product lifecycle management (PLM) system, human resources and financial systems.
B29: Acquisition and integration costs include all incremental expenses incurred to effect a business combination. Such acquisition costs may include advisory, legal, accounting, valuation, and other professional or consulting fees. Such integration costs may include expenses directly related to integration of business and facility operations, the transfer of assets and intellectual property, information technology systems and infrastructure and other employee-related costs.
B30: Pension settlement loss relates to the relief of the US Retirement Plan pension obligation due to increased lump sum payouts over a specified accounting threshold.
B31: Loss on extinguishment of debt relates to the net loss recorded on the redemption of $100 million of the $400 million outstanding 3.2% 2022 senior notes due on October 1, 2022, called on December 22, 2020 and settled on January 21, 2021 and the net loss recorded on the redemption of the remaining $300 million called on March 5, 2021 and settled on April 5, 2021.
B32: Business exit and divestiture costs include costs associated with business divestitures.
B33: NASD site costs include all the costs related to the expansion of our manufacturing of nucleic acid active pharmaceutical ingredients incurred prior to the commencement of commercial manufacturing.
B34: Special compliance costs include costs associated with transforming our processes to implement new regulations such as data privacy regulations, revenue recognition, lease accounting and certain tax reporting requirements.
B35: Acceleration of share-based compensation expense represents stock-based compensation expense that was accelerated upon employees’ involuntary termination from the company.
B36: Other includes certain legal costs and settlements, net unrealized gains related to our equity securities and acceleration of share-based compensation expense in addition to other miscellaneous adjustments.
B37: Tax benefit on intra-entity asset transfer relates to our operations in Singapore along with our application of the new accounting rules for income tax consequences of intra-entity transfer of assets as adopted on November 1, 2018.
A39: Our management uses non-GAAP measures to evaluate the performance of our core businesses, to estimate future core performance and to compensate employees. Since management finds this measure to be useful, we believe that our investors benefit from seeing our results “through the eyes” of management in addition to seeing our GAAP results. This information facilitates our management’s internal comparisons to our historical operating results as well as to the operating results of our competitors.
A41: Our management recognizes that items such as amortization of intangibles can have a material impact on our cash flows and/or our net income. Our GAAP financial statements including our statement of cash flows portray those effects. Although we believe it is useful for investors to see core performance free of special items, investors should understand that the excluded items are actual expenses that may impact the cash available to us for other uses. To gain a complete picture of all effects on the company’s profit and loss from any and all events, management does (and investors should) rely upon the GAAP income statement. The non-GAAP numbers focus instead upon the core business of the company, which is only a subset, albeit a critical one, of the company’s performance.
A43: Readers are reminded that non-GAAP numbers are merely a supplement to, and not a replacement for, GAAP financial measures. They should be read in conjunction with the GAAP financial measures. It should be noted as well that our non-GAAP information may be different from the non-GAAP information provided by other companies.
A45: The preliminary non-GAAP net income and diluted EPS reconciliation is estimated based on our current information.
A48: Page 4

Sheet Segment Results
A1: AGILENT TECHNOLOGIES, INC.
A2: SEGMENT INFORMATION
A3: (In millions, except where noted)
A4: (Unaudited)
A5: PRELIMINARY
A8: Quarter-over-Quarter
A10: Life Sciences and Applied Markets Group
C11: Q3'21 | E11: Q3'20
A12: Revenue | C12: $680 | E12: $557
A13: Gross Margin, % | C13: 60.0% | E13: 59.3%
A14: Income from Operations | C14: $170 | E14: $126
A15: Operating margin, % | C15: 25.0% | E15: 22.6%
A18: Diagnostics and Genomics Group
C19: =C11 -> Q3'21 | E19: =E11 -> Q3'20
A20: Revenue | C20: $346 | E20: $241
A21: Gross Margin, % | C21: 53.5% | E21: 49.8%
A22: Income from Operations | C22: $78 | E22: $41
A23: Operating margin, % | C23: 22.6% | E23: 17.2%
A26: Agilent CrossLab Group
C27: =C11 -> Q3'21 | E27: =E11 -> Q3'20
A28: Revenue | C28: $560 | E28: $463
A29: Gross Margin, % | C29: 52.5% | E29: 52.6%
A30: Income from Operations | C30: $164 | E30: $132
A31: Operating margin, % | C31: 29.3% | E31: 28.4%
A34: Year-over-Year
A36: Life Sciences and Applied Markets Group
C37: FY20 | E37: FY19
A38: Revenue | C38: $2,392 | E38: $2,302
A39: Gross Margin, % | C39: 59.2% | E39: 61.0%
A40: Income from Operations | C40: $548 | E40: $542
A41: Operating margin, % | C41: 22.9% | E41: 23.5%
A44: Diagnostics and Genomics Group
C45: =C37 -> FY20 | E45: =E37 -> FY19
A46: Revenue | C46: $1,047 | E46: $1,021
A47: Gross Margin, % | C47: 51.9% | E47: 54.7%
A48: Income from Operations | C48: $192 | E48: $185
A49: Operating margin, % | C49: 18.3% | E49: 18.2%
A52: Agilent CrossLab Group
C53: =C37 -> FY20 | E53: =E37 -> FY19
A54: Revenue | C54: $1,900 | E54: $1,840
A55: Gross Margin, % | C55: 52.2% | E55: 51.8%
A56: Income from Operations | C56: $516 | E56: $475
A57: Operating margin, % | C57: 27.2% | E57: 25.8%
A61: Income from operations reflect the results of our reportable segments under Agilent's management reporting system which are not necessarily in conformity with GAAP financial measures. Income from operations of our reporting segments exclude, among other things, charges related to amortization of intangibles, transformational initiatives and acquisition and integration costs.
A63: Readers are reminded that non-GAAP numbers are merely a supplement to, and not a replacement for, GAAP financial measures. They should be read in conjunction with the GAAP financial measures. It should be noted as well that our non-GAAP information may be different from the non-GAAP information provided by other companies.
A65: The preliminary segment information is estimated based on our current information.
A68: Page 5

Sheet Core Revenue by Segment (QTD)
A1: AGILENT TECHNOLOGIES, INC.
A2: RECONCILIATIONS OF REVENUE BY SEGMENT
A3: EXCLUDING ACQUISITIONS, DIVESTITURES AND THE IMPACT OF CURRENCY ADJUSTMENTS (CORE)
A4: (in millions)
A5: (Unaudited)
A6: PRELIMINARY
B8: Year-over-Year
B10: GAAP
D11: Year-over-Year
A12: GAAP Revenue by Segment | B12: Q3'21 | C12: Q3'20 | D12: % Change
A14: Life Sciences and Applied Markets Group | B14: $680 | C14: $557 | D14: 22%
A15: Diagnostics and Genomics Group | B15: 346 | C15: 241 | D15: 44%
A16: Agilent CrossLab Group | B16: 560 | C16: 463 | D16: 21%
A17: Agilent | B17: =SUM(B14:B16) -> $1,586 | C17: =SUM(C14:C16) -> $1,261 | D17: 26%
B22: Non-GAAP (excluding Acquisitions & Divestitures) | F22: Year-over-Year at Constant Currency (a)
D23: Year-over-Year | F23: Year-over-Year | G23: Percentage Point Impact from Currency | I23: Current Quarter Currency Impact (b)
A24: Non GAAP Revenue by Segment | B24: =B12 -> Q3'21 | C24: =C12 -> Q3'20 | D24: % Change | F24: % Change
A26: Life Sciences and Applied Markets Group | B26: $680 | C26: $557 | D26: 22% | F26: 18% | G26: 4 ppts | I26: $21
A27: Diagnostics and Genomics Group | B27: 340 | C27: 241 | D27: 41% | F27: 37% | G27: 4 ppts | I27: 10
A28: Agilent CrossLab Group | B28: 560 | C28: 463 | D28: 21% | F28: 15% | G28: 6 ppts | I28: 26
A29: Agilent (Core) | B29: =SUM(B26:B28) -> $1,580 | C29: =SUM(C26:C28) -> $1,261 | D29: 25% | F29: 21% | G29: 4 ppts | I29: =SUM(I26:I28) -> $57
A33: We compare the year-over-year change in revenue excluding the effect of recent acquisitions and divestitures and foreign currency rate fluctuations to assess the performance of our underlying business.
A35: (a) The constant currency year-over-year growth percentage is calculated by recalculating all periods in the comparison period at the foreign currency exchange rates used for accounting during the last month of the current quarter and then using those revised values to calculate the year-over-year percentage change.
A37: (b) The dollar impact from the current quarter currency impact is equal to the total year-over-year dollar change less the constant currency year-over-year change.
A39: The preliminary reconciliation of GAAP revenue adjusted for recent acquisitions and divestitures and impact of currency is estimated based on our current information.
A45: Page 6
